Department Family,Entity,Date of Payment,GL Description,Expense Area,Supplier,Voluntary,SME Class,Sole Trader,Transaction number,Purchasing Item Text,Postal Code,Amount in Sterling,Grant?
MHCLG,PINS,02/01/2019,Agency Staff,Enforcements,REED SPECIALIST RECRUITMENT LTD,,Large,,5106242450,Agency Staff RT,SW20 0BA,548.64,
MHCLG,PINS,02/01/2019,Agency Staff,"Policy, Knowledge & Quality",REED SPECIALIST RECRUITMENT LTD,,Large,,5106242451,Agency Staff for Library,SW20 0BA,599.84,
MHCLG,PINS,02/01/2019,Agency Staff,TR Digital Transformation,REED SPECIALIST RECRUITMENT LTD,,Large,,5106242453,Build Suport,SW20 0BA,267.48,
MHCLG,PINS,02/01/2019,IT SUPPORT,Research and Development,METHODS PROFESSIONAL SERVICES,,Small,,5106242225,ODT PDM Contract,EC1A 4EN,"17,100.00",
MHCLG,PINS,02/01/2019,NSI Fees & Expenses,NSI Fees Planning,ALISON ROLAND,,Not assigned,,2100067211,,BD20 7BG,"1,500.00",
MHCLG,PINS,02/01/2019,NSI Fees & Expenses,NSI Expenses Planning,ALISON ROLAND,,Not assigned,,2100067211,,BD20 7BG,560.40,
MHCLG,PINS,02/01/2019,NSI Fees & Expenses,NSI Fees Planning,LJE PLANNING LTD,,Data Not Provided,,2100067215,,SO22 6RT,"2,100.00",
MHCLG,PINS,02/01/2019,NSI Fees & Expenses,NSI Expenses Planning,LJE PLANNING LTD,,Data Not Provided,,2100067215,,SO22 6RT,147.06,
MHCLG,PINS,02/01/2019,NSI Fees & Expenses,NSI Fees Planning,SIMPLY PLANNING LIMITED,,Small,,2100067212,,BT23 6NR,"1,650.00",
MHCLG,PINS,02/01/2019,NSI Fees & Expenses,NSI Expenses Planning,SIMPLY PLANNING LIMITED,,Small,,2100067212,,BT23 6NR,840.00,
MHCLG,PINS,03/01/2019,Agency Staff,Environment & Transport,REED SPECIALIST RECRUITMENT LTD,,Large,,5106242459,AO Specialist Case Officer PS,SW20 0BA,563.60,
MHCLG,PINS,03/01/2019,Courier Services,Estates,ROYAL MAIL,,Large,,5106242483,Outgoing post,S49 1HQ,"1,779.13",
MHCLG,PINS,03/01/2019,Legal Fees,"Policy, Knowledge & Quality",GOVERNMENT LEGAL DEPARTMENT,,Public Bodies,,5106242465,Disbursements,WC2B 4TS,"36,699.07",
MHCLG,PINS,03/01/2019,Legal Fees,"Policy, Knowledge & Quality",GOVERNMENT LEGAL DEPARTMENT,,Public Bodies,,5106242465,Fees and charges,WC2B 4TS,"48,603.42",
MHCLG,PINS,03/01/2019,TSOL Adverse Costs,"Policy, Knowledge & Quality",GOVERNMENT LEGAL DEPARTMENT,,Public Bodies,,2100067237,,WC2B 4TS,"4,850.00",
MHCLG,PINS,04/01/2019,Agency Staff,TR People,HAYS SPECIALIST RECRUITMENT LTD,,Large,,5106242501,HRBP- SL,NW1 2AF,"1,277.52",
MHCLG,PINS,04/01/2019,EXP � PURCHASE OF GOODS /SERVICES R & D,Research and Development,HAYS SPECIALIST RECRUITMENT LTD,,Large,,5106242315,ODT Copywriter Resource,NW1 2AF,992.50,
MHCLG,PINS,04/01/2019,IT SUPPORT,Research and Development,HAYS SPECIALIST RECRUITMENT LTD,,Large,,5106242399,Workforce planner,NW1 2AF,"2,262.84",
MHCLG,PINS,04/01/2019,NSI Fees & Expenses,NSI Fees Planning,ANDREW DALE,,Not assigned,,2100067257,,DE23 8DP,"2,485.00",
MHCLG,PINS,04/01/2019,NSI Fees & Expenses,NSI Expenses Planning,ANDREW DALE,,Not assigned,,2100067257,,DE23 8DP,395.76,
MHCLG,PINS,04/01/2019,NSI Fees & Expenses,NSI Fees Planning,CHRIS THOMAS PLANNING,,Micro,,2100067258,,CH6 5QE,"1,120.00",
MHCLG,PINS,04/01/2019,NSI Fees & Expenses,NSI Expenses Planning,CHRIS THOMAS PLANNING,,Micro,,2100067258,,CH6 5QE,68.40,
MHCLG,PINS,04/01/2019,NSI Fees & Expenses,NSI Fees Planning,S P PLANNING,,Small,,2100067259,,EC1M 5QA,"1,344.00",
MHCLG,PINS,04/01/2019,NSI Fees & Expenses,NSI Expenses Planning,S P PLANNING,,Small,,2100067259,,EC1M 5QA,78.30,
MHCLG,PINS,04/01/2019,Office Supplies,Business Support,BANNER BUSINESS SUPPLIES LTD,,Large,,5106242508,Office Stationery 18-19,S9 1XU,223.47,
MHCLG,PINS,04/01/2019,Office Supplies,Business Support,BANNER BUSINESS SUPPLIES LTD,,Large,,5106242508,Paper 18-19,S9 1XU,258.25,
MHCLG,PINS,04/01/2019,Vehicle hire,Inspector Costs,ENTERPRISE RENT-A-CAR,,Large,,5106242498,Vehicle hire,TW20 9FB,"11,507.58",
MHCLG,PINS,07/01/2019,Courier Services,Estates,PARCELFORCE WORLDWIDE,,Large,,5106242534,Courier Service,MK7 8LE,"5,647.40",
MHCLG,PINS,07/01/2019,Mobile phone costs,ICT Digital Services,GAMMA TELECOM LTD,,Large,,2100067328,"Tariffs, MDM & Multinet fees ",EC4M 7RD,"-7,326.30",
MHCLG,PINS,07/01/2019,Mobile phone costs,ICT Digital Services,GAMMA TELECOM LTD,,Large,,5106242415,"Tariffs, MDM & Multinet fees",EC4M 7RD,"7,326.30",
MHCLG,PINS,07/01/2019,NSI Fees & Expenses,NSI Fees Planning,COUPER PLANNING SERVICES LTD,,Micro,,2100067289,,WR5 2AG,"2,100.00",
MHCLG,PINS,07/01/2019,NSI Fees & Expenses,NSI Expenses Planning,COUPER PLANNING SERVICES LTD,,Micro,,2100067289,,WR5 2AG,171.00,
MHCLG,PINS,07/01/2019,NSI Fees & Expenses,NSI Fees Planning,JDA DEVELOPMENT & PLANNING SERVICE,,Micro,,2100067273,,TA14 6PT,"1,750.00",
MHCLG,PINS,07/01/2019,NSI Fees & Expenses,NSI Expenses Planning,JDA DEVELOPMENT & PLANNING SERVICE,,Micro,,2100067273,,TA14 6PT,120.30,
MHCLG,PINS,07/01/2019,NSI Fees & Expenses,NSI Fees Planning,JDA DEVELOPMENT & PLANNING SERVICE,,Micro,,2100067291,,TA14 6PT,"1,750.00",
MHCLG,PINS,07/01/2019,NSI Fees & Expenses,NSI Expenses Planning,JDA DEVELOPMENT & PLANNING SERVICE,,Micro,,2100067291,,TA14 6PT,132.45,
MHCLG,PINS,07/01/2019,NSI Fees & Expenses,NSI Fees Planning,JOHN WHALLEY,,Micro,,2100067271,,LL54 5BS,"1,000.00",
MHCLG,PINS,07/01/2019,NSI Fees & Expenses,NSI Expenses Planning,JOHN WHALLEY,,Micro,,2100067271,,LL54 5BS,416.95,
MHCLG,PINS,07/01/2019,NSI Fees & Expenses,NSI Fees Planning,LEIGH & GLENNIE LTD,,Micro,,2100067272,,SL5 9EA,336.00,
MHCLG,PINS,07/01/2019,NSI Fees & Expenses,NSI Fees Planning,MARTIN SEDDON LIMITED,,Micro,,2100067276,,DE4 2JP,"1,344.00",
MHCLG,PINS,07/01/2019,NSI Fees & Expenses,NSI Expenses Planning,MARTIN SEDDON LIMITED,,Micro,,2100067276,,DE4 2JP,159.84,
MHCLG,PINS,07/01/2019,Payroll Services,Human Resources,CGI IT UK LIMITED,,Large,,5106242539,Payroll Service 2018/19,CF31 9AP,"5,699.10",
MHCLG,PINS,07/01/2019,Physical Storage,Business Support,RESTORE PLC,,Large,,5106242513,Blanket for offsite storage,RH1 5DY,"1,758.06",
MHCLG,PINS,07/01/2019,Specialist Technical Support,ICT Digital Services,HAYS SPECIALIST RECRUITMENT LTD,,Large,,2100067327,ITMP PDM,NW1 2AF,"-4,660.50",
MHCLG,PINS,07/01/2019,Specialist Technical Support,ICT Digital Services,HAYS SPECIALIST RECRUITMENT LTD,,Large,,5106242464,ITMP PDM,NW1 2AF,"4,660.50",
MHCLG,PINS,08/01/2019,Agency Staff,Environment & Transport,REED SPECIALIST RECRUITMENT LTD,,Large,,5106242246,AO Specialist Case Officer HL,SW20 0BA,452.88,
MHCLG,PINS,08/01/2019,Agency Staff,Environment & Transport,REED SPECIALIST RECRUITMENT LTD,,Large,,5106242247,AO Specialist Case Officer PS,SW20 0BA,398.74,
MHCLG,PINS,08/01/2019,Agency Staff,Transformation Prog Management Office,REED SPECIALIST RECRUITMENT LTD,,Large,,5106242551,Programme Support role SB,SW20 0BA,886.42,
MHCLG,PINS,08/01/2019,Agency Staff,Planning Casework Operations,REED SPECIALIST RECRUITMENT LTD,,Large,,5106242561,Agency AO PCO GD,SW20 0BA,317.02,
MHCLG,PINS,08/01/2019,Agency Staff,Environment & Transport,REED SPECIALIST RECRUITMENT LTD,,Large,,5106242572,AO Specialist Case Officer HL,SW20 0BA,437.78,
MHCLG,PINS,08/01/2019,Agency Staff,Enforcements,REED SPECIALIST RECRUITMENT LTD,,Large,,5106242574,Agency Staff RT,SW20 0BA,539.50,
MHCLG,PINS,08/01/2019,Agency Staff,Planning Casework Operations,REED SPECIALIST RECRUITMENT LTD,,Large,,5106242579,Agency AO PCO GD,SW20 0BA,400.04,
MHCLG,PINS,08/01/2019,Agency Staff,"Policy, Knowledge & Quality",REED SPECIALIST RECRUITMENT LTD,,Large,,5106242583,Agency Staff for Library,SW20 0BA,312.08,
MHCLG,PINS,08/01/2019,Agency Staff,"Policy, Knowledge & Quality",REED SPECIALIST RECRUITMENT LTD,,Large,,5106242587,Agency Staff for Library,SW20 0BA,563.36,
MHCLG,PINS,08/01/2019,Agency Staff,Planning Casework Operations,REED SPECIALIST RECRUITMENT LTD,,Large,,5106242589,AO AGENCY STAFF JJF,SW20 0BA,340.45,
MHCLG,PINS,08/01/2019,Agency Staff,Inspector Development & Support Team,REED SPECIALIST RECRUITMENT LTD,,Large,,5106242591,Agency EO IDST,SW20 0BA,841.34,
MHCLG,PINS,08/01/2019,Agency Staff,Inspector Development & Support Team,REED SPECIALIST RECRUITMENT LTD,,Large,,5106242592,Temp staff for IDST-SC,SW20 0BA,376.13,
MHCLG,PINS,08/01/2019,EXP � PURCHASE OF GOODS /SERVICES R & D,Research and Development,HAYS SPECIALIST RECRUITMENT LTD,,Large,,5106242595,ODT Copywriter Resource,NW1 2AF,794.00,
MHCLG,PINS,08/01/2019,IT - Service Contracts,ICT Digital Services,ZSAH LTD,,Small,,5106242490,Extension of PINS contract 17/12/710,SW7 3HE,"4,098.26",
MHCLG,PINS,08/01/2019,IT SUPPORT,ICT Digital Services,HAYS SPECIALIST RECRUITMENT LTD,,Large,,5106242248,ITMP Delivery Manager,NW1 2AF,932.11,
MHCLG,PINS,08/01/2019,IT SUPPORT,ICT Digital Services,THIRTY FOUR FEET LTD,,Micro,,5106242250,IT tester services - contract extension,NP15 1QB,"1,260.00",
MHCLG,PINS,08/01/2019,Specialist Technical Support,ICT Digital Services,MEDLEY BUSINESS SOLUTIONS LIMITED,,Medium,,5106242496,Services of a Digital Architect,GU4 8PR,"13,305.60",
MHCLG,PINS,09/01/2019,Office machinery consumables,Business Support,X M A LIMITED,,Data Not Provided,,5106242606,Office Machine Consumables 18-19,NG11 7EP,"2,147.52",
MHCLG,PINS,09/01/2019,Office machinery consumables,Business Support,X M A LIMITED,,Data Not Provided,,5106242608,Office Machine Consumables 18-19,NG11 7EP,"2,200.18",
MHCLG,PINS,09/01/2019,Web Services,TR Digital Transformation,PHOENIX SOFTWARE,,Medium,,5106242614,Microsoft Enterprise Mobility + Security,YO42 1NS,"1,309.04",
MHCLG,PINS,10/01/2019,Agency Staff,"Finance, Commercial & Performance",REED SPECIALIST RECRUITMENT LTD,,Large,,5106242552,EO for Finance ext,SW20 0BA,875.86,
MHCLG,PINS,10/01/2019,Agency Staff,Environment & Transport,REED SPECIALIST RECRUITMENT LTD,,Large,,5106242634,AO Specialist Case Officer PS,SW20 0BA,506.09,
MHCLG,PINS,10/01/2019,Agency Staff,Environment & Transport,REED SPECIALIST RECRUITMENT LTD,,Large,,5106242661,AO Specialist Case Officer HL,SW20 0BA,479.30,
MHCLG,PINS,10/01/2019,Mobile phone costs,ICT Digital Services,GAMMA TELECOM LTD,,Large,,5106242657,Miscellaneous VAT zero rated items,EC4M 7RD,20.75,
MHCLG,PINS,10/01/2019,Mobile phone costs,ICT Digital Services,GAMMA TELECOM LTD,,Large,,5106242657,Mobile telephony services 2018-19,EC4M 7RD,"7,326.30",
MHCLG,PINS,10/01/2019,NSI Fees & Expenses,NSI Fees Planning,COUPER PLANNING SERVICES LTD,,Micro,,2100066997,,WR5 2AG,600.00,
MHCLG,PINS,10/01/2019,NSI Fees & Expenses,NSI Expenses Planning,COUPER PLANNING SERVICES LTD,,Micro,,2100066997,,WR5 2AG,142.08,
MHCLG,PINS,10/01/2019,Office Supplies,Business Support,BANNER BUSINESS SUPPLIES LTD,,Large,,5106242645,Office Stationery 18-19,S9 1XU,402.75,
MHCLG,PINS,10/01/2019,Office Supplies,Business Support,BANNER BUSINESS SUPPLIES LTD,,Large,,5106242645,Paper 18-19,S9 1XU,141.49,
MHCLG,PINS,11/01/2019,IT SUPPORT,ICT Digital Services,AIIMI LTD,,Medium,,5106242703,Imps Consultant,MK9 1JL,"19,530.00",
MHCLG,PINS,11/01/2019,IT SUPPORT,ICT Digital Services,HAYS SPECIALIST RECRUITMENT LTD,,Large,,5106242686,ITMP Delivery Manager,NW1 2AF,"3,728.40",
MHCLG,PINS,11/01/2019,Mobile phone costs,ICT Digital Services,GAMMA TELECOM LTD,,Large,,2100067518,"Tariffs, MDM & Multinet fees",EC4M 7RD,"-6,736.90",
MHCLG,PINS,11/01/2019,Mobile phone costs,ICT Digital Services,GAMMA TELECOM LTD,,Large,,5106242680,"Tariffs, MDM & Multinet fees",EC4M 7RD,"6,736.90",
MHCLG,PINS,11/01/2019,NSI Fees & Expenses,NSI Fees Planning,4 PLANNING DELIVERY LTD,,Micro,,2100067417,,S8 9BG,"1,176.00",
MHCLG,PINS,11/01/2019,NSI Fees & Expenses,NSI Expenses Planning,4 PLANNING DELIVERY LTD,,Micro,,2100067417,,S8 9BG,278.59,
MHCLG,PINS,11/01/2019,NSI Fees & Expenses,NSI Fees Planning,ALISON ROLAND,,Not assigned,,2100067326,,BD20 7BG,"5,174.40",
MHCLG,PINS,11/01/2019,NSI Fees & Expenses,NSI Expenses Planning,ALISON ROLAND,,Not assigned,,2100067326,,BD20 7BG,303.48,
MHCLG,PINS,11/01/2019,NSI Fees & Expenses,NSI Fees Planning,ALISON ROLAND,,Not assigned,,2100067368,,BD20 7BG,"4,838.40",
MHCLG,PINS,11/01/2019,NSI Fees & Expenses,NSI Expenses Planning,ALISON ROLAND,,Not assigned,,2100067368,,BD20 7BG,623.16,
MHCLG,PINS,11/01/2019,NSI Fees & Expenses,NSI Fees Planning,CHRIS TIVEY ASSOCIATES,,Micro,,2100067324,,BA4 9DN,"2,100.00",
MHCLG,PINS,11/01/2019,NSI Fees & Expenses,NSI Expenses Planning,CHRIS TIVEY ASSOCIATES,,Micro,,2100067324,,BA4 9DN,154.26,
MHCLG,PINS,11/01/2019,NSI Fees & Expenses,NSI Fees Planning,DESIGN 2,,Micro,,2100067481,,PO20 0HX,336.00,
MHCLG,PINS,11/01/2019,NSI Fees & Expenses,NSI Fees Planning,GARY DEANE ASSOCIATES LIMITED,,Micro,,2100067329,,M33 6RG,"2,730.00",
MHCLG,PINS,11/01/2019,NSI Fees & Expenses,NSI Expenses Planning,GARY DEANE ASSOCIATES LIMITED,,Micro,,2100067329,,M33 6RG,141.48,
MHCLG,PINS,11/01/2019,NSI Fees & Expenses,NSI Fees Planning,GARY DEANE ASSOCIATES LIMITED,,Micro,,2100067436,,M33 6RG,"2,520.00",
MHCLG,PINS,11/01/2019,NSI Fees & Expenses,NSI Expenses Planning,GARY DEANE ASSOCIATES LIMITED,,Micro,,2100067436,,M33 6RG,83.16,
MHCLG,PINS,11/01/2019,NSI Fees & Expenses,NSI Fees Planning,H J L PLANNING,,Micro,,2100067364,,CM3 1HZ,"1,330.00",
MHCLG,PINS,11/01/2019,NSI Fees & Expenses,NSI Expenses Planning,H J L PLANNING,,Micro,,2100067364,,CM3 1HZ,65.40,
MHCLG,PINS,11/01/2019,NSI Fees & Expenses,NSI Fees Planning,JDAT LTD,,Small,,2100067365,,BS1 4RJ,"1,250.00",
MHCLG,PINS,11/01/2019,NSI Fees & Expenses,NSI Fees Planning,LANGFORD TEJRAR PLANNING LTD,,Small,,2100067379,,GL20 7EE,"1,500.00",
MHCLG,PINS,11/01/2019,NSI Fees & Expenses,NSI Expenses Planning,LANGFORD TEJRAR PLANNING LTD,,Small,,2100067379,,GL20 7EE,445.88,
MHCLG,PINS,11/01/2019,NSI Fees & Expenses,NSI Fees Planning,MARTIN ANDREWS PLANNING CONSULTANCY,,Micro,,2100067479,,BH15 1HH,"1,680.00",
MHCLG,PINS,11/01/2019,NSI Fees & Expenses,NSI Expenses Planning,MARTIN ANDREWS PLANNING CONSULTANCY,,Micro,,2100067479,,BH15 1HH,101.70,
MHCLG,PINS,11/01/2019,NSI Fees & Expenses,NSI Fees Planning,MARTIN ANDREWS PLANNING CONSULTANCY,,Micro,,2100067480,,BH15 1HH,"2,508.00",
MHCLG,PINS,11/01/2019,NSI Fees & Expenses,NSI Expenses Planning,MARTIN ANDREWS PLANNING CONSULTANCY,,Micro,,2100067480,,BH15 1HH,272.33,
MHCLG,PINS,11/01/2019,NSI Fees & Expenses,NSI Fees Planning,STAR PLANNING & DEVELOPMENT LTD,,Micro,,2100067482,,B14 6BX,600.00,
MHCLG,PINS,11/01/2019,NSI Fees & Expenses,NSI Expenses Planning,STAR PLANNING & DEVELOPMENT LTD,,Micro,,2100067482,,B14 6BX,252.24,
MHCLG,PINS,11/01/2019,NSI Fees & Expenses,NSI Fees Planning,STAR PLANNING & DEVELOPMENT LTD,,Micro,,2100067483,,B14 6BX,"1,008.00",
MHCLG,PINS,11/01/2019,NSI Fees & Expenses,NSI Expenses Planning,STAR PLANNING & DEVELOPMENT LTD,,Micro,,2100067483,,B14 6BX,132.23,
MHCLG,PINS,11/01/2019,NSI Fees & Expenses,NSI Fees Planning,STAR PLANNING & DEVELOPMENT LTD,,Micro,,2100067484,,B14 6BX,"2,460.00",
MHCLG,PINS,11/01/2019,NSI Fees & Expenses,NSI Expenses Planning,STAR PLANNING & DEVELOPMENT LTD,,Micro,,2100067484,,B14 6BX,124.25,
MHCLG,PINS,14/01/2019,Courier Services,Estates,ROYAL MAIL,,Large,,5106242772,Outgoing post,S49 1HQ,"2,657.02",
MHCLG,PINS,14/01/2019,IT SUPPORT,TR Organisational Agility,ALLEN LANE LTD,,Medium,,2100067573,Finance Planning Business Partner resour,SW1Y 6RJ,"-5,484.29",
MHCLG,PINS,14/01/2019,IT SUPPORT,TR Organisational Agility,ALLEN LANE LTD,,Medium,,5106242641,Finance Planning Business Partner resour,SW1Y 6RJ,"5,484.29",
MHCLG,PINS,14/01/2019,IT SUPPORT,ICT Digital Services,METHODS PROFESSIONAL SERVICES,,Small,,5106242766,Programme Manager Contract,EC1A 4EN,"15,540.00",
MHCLG,PINS,14/01/2019,Physical Storage,Business Support,RESTORE PLC,,Large,,5106242720,Blanket for offsite storage,RH1 5DY,"1,142.02",
MHCLG,PINS,14/01/2019,Travel and Subsistence Account,Inspector Costs,REDFERN TRAVEL LIMITED,,Small,,5106242714,AIR TRAVEL,BD1 3AZ,446.53,
MHCLG,PINS,14/01/2019,Travel and Subsistence Account,Inspector Costs,REDFERN TRAVEL LIMITED,,Small,,5106242714,BILLBACK FEE,BD1 3AZ,25.80,
MHCLG,PINS,14/01/2019,Travel and Subsistence Account,Inspector Costs,REDFERN TRAVEL LIMITED,,Small,,5106242714,RAIL TRAVEL,BD1 3AZ,"20,578.25",
MHCLG,PINS,14/01/2019,Travel and Subsistence Account,Inspector Costs,REDFERN TRAVEL LIMITED,,Small,,5106242714,WEB TRANSACTION,BD1 3AZ,950.47,
MHCLG,PINS,14/01/2019,Travel and Subsistence Account,Inspector Costs,REDFERN TRAVEL LIMITED,,Small,,5106242714,HOTEL ACCOMMODATION,BD1 3AZ,"37,610.55",
MHCLG,PINS,14/01/2019,Travel and Subsistence Account,Inspector Costs,REDFERN TRAVEL LIMITED,,Small,,5106242714,HOTEL FEE,BD1 3AZ,181.03,
MHCLG,PINS,15/01/2019,Advertising,Wales Director,TMP (UK) LIMITED,,Large,,5106242812,Statutory Advertising - Wales 18-19,W1T 7RQ,"2,308.54",
MHCLG,PINS,15/01/2019,IT SUPPORT,ICT Digital Services,HAYS SPECIALIST RECRUITMENT LTD,,Large,,5106242764,ITMP Delivery Manager,NW1 2AF,"4,660.50",
MHCLG,PINS,15/01/2019,IT SUPPORT,Differences - Central,HAYS SPECIALIST RECRUITMENT LTD,,Large,,5106242681,Research & Development for Stats ODT,NW1 2AF,"1,609.20",
MHCLG,PINS,15/01/2019,IT SUPPORT,Differences - Central,HAYS SPECIALIST RECRUITMENT LTD,,Large,,5106242682,Research & Development for Stats ODT,NW1 2AF,"2,145.60",
MHCLG,PINS,15/01/2019,IT SUPPORT,Differences - Central,HAYS SPECIALIST RECRUITMENT LTD,,Large,,5106242684,Research & Development for Stats ODT,NW1 2AF,"2,682.00",
MHCLG,PINS,15/01/2019,IT SUPPORT,ICT Digital Services,THIRTY FOUR FEET LTD,,Micro,,5106242791,IT tester services - contract extension,NP15 1QB,"1,680.00",
MHCLG,PINS,15/01/2019,Mobile phone costs,ICT Digital Services,GAMMA TELECOM LTD,,Large,,5106242797,Mobile telephony services 2018-19,EC4M 7RD,"6,736.90",
MHCLG,PINS,15/01/2019,Specialist Technical Support,ICT Digital Services,ALLEN LANE LTD,,Medium,,5106242640,Office 365 technical specialist from,SW1Y 6RJ,"1,072.78",
MHCLG,PINS,15/01/2019,Translations,Infrastructure Planning,TROSOL CYFYNGEDIG,,Small,,5106242807,Welsh Translation Services NID,CF14 5GH,990.60,
MHCLG,PINS,16/01/2019,Agency Staff,Environment & Transport,REED SPECIALIST RECRUITMENT LTD,,Large,,5106242839,AO Specialist Case Officer PS,SW20 0BA,253.04,
MHCLG,PINS,16/01/2019,Agency Staff,Inspector Development & Support Team,REED SPECIALIST RECRUITMENT LTD,,Large,,5106242861,Agency EO IDST,SW20 0BA,362.94,
MHCLG,PINS,16/01/2019,Agency Staff,Environment & Transport,REED SPECIALIST RECRUITMENT LTD,,Large,,5106242862,AO Specialist Case Officer HL,SW20 0BA,328.34,
MHCLG,PINS,16/01/2019,Agency Staff,Inspector Development & Support Team,REED SPECIALIST RECRUITMENT LTD,,Large,,5106242863,Temp staff for IDST-SC,SW20 0BA,383.96,
MHCLG,PINS,16/01/2019,Agency Staff,Enforcements,REED SPECIALIST RECRUITMENT LTD,,Large,,5106242865,Agency Staff RT,SW20 0BA,411.48,
MHCLG,PINS,16/01/2019,Agency Staff,Planning Casework Operations,REED SPECIALIST RECRUITMENT LTD,,Large,,5106242868,Agency AO PCO GD,SW20 0BA,460.43,
MHCLG,PINS,16/01/2019,IT SUPPORT,Transformation Prog Management Office,METHODS PROFESSIONAL SERVICES,,Small,,5106242685,PM for Performance Recovery Project,EC1A 4EN,"19,912.38",
MHCLG,PINS,16/01/2019,IT SUPPORT,Research and Development,METHODS PROFESSIONAL SERVICES,,Small,,5106242788,ODT PDM Contract,EC1A 4EN,"17,100.00",
MHCLG,PINS,16/01/2019,NSI Fees & Expenses,NSI Fees Planning,ELIZABETH LAWRENCE LTD,,Micro,,2100067572,,RH20 3LY,"3,030.00",
MHCLG,PINS,16/01/2019,NSI Fees & Expenses,NSI Expenses Planning,ELIZABETH LAWRENCE LTD,,Micro,,2100067572,,RH20 3LY,46.98,
MHCLG,PINS,16/01/2019,NSI Fees & Expenses,NSI Fees Planning,ELIZABETH LAWRENCE LTD,,Micro,,2100067574,,RH20 3LY,"2,016.00",
MHCLG,PINS,16/01/2019,NSI Fees & Expenses,NSI Expenses Planning,ELIZABETH LAWRENCE LTD,,Micro,,2100067574,,RH20 3LY,38.88,
MHCLG,PINS,16/01/2019,NSI Fees & Expenses,NSI Fees Planning,FITZSIMON PLANNING & DEVELOPMENT,,Micro,,2100067578,,CH7 5NL,"4,325.00",
MHCLG,PINS,16/01/2019,NSI Fees & Expenses,NSI Fees Planning,SANDRA PRAIL LTD,,Micro,,2100067577,,BN16 1RX,"1,620.00",
MHCLG,PINS,16/01/2019,NSI Fees & Expenses,NSI Expenses Planning,SANDRA PRAIL LTD,,Micro,,2100067577,,BN16 1RX,91.44,
MHCLG,PINS,16/01/2019,Office Supplies,Business Support,BANNER BUSINESS SUPPLIES LTD,,Large,,5106242851,Office Stationery 18-19,S9 1XU,449.87,
MHCLG,PINS,16/01/2019,Office Supplies,Business Support,BANNER BUSINESS SUPPLIES LTD,,Large,,5106242851,Paper 18-19,S9 1XU,306.33,
MHCLG,PINS,16/01/2019,Recruitment,Human Resources,HAYMARKET MEDIA GROUP LIMITED,,Data Not Provided,,5106242847,Recruitment - SH,TW1 3SP,"2,920.00",
MHCLG,PINS,16/01/2019,Translations,Wales Director,TROSOL CYFYNGEDIG,,Small,,5106242856,PINS Wales Translations Costs 2018-19,CF14 5GH,"3,238.85",
MHCLG,PINS,17/01/2019,Advertising,ROW,TMP (UK) LIMITED,,Large,,5106242903,Statutory Advertising - ROW,W1T 7RQ,867.59,
MHCLG,PINS,17/01/2019,Courier Services,Wales Director,ROYAL MAIL,,Large,,5106242895,Postal Services 9058056072,S49 1HQ,342.83,
MHCLG,PINS,17/01/2019,IT - Service Contracts,ICT Digital Services,MHCLG,,Public Bodies,,5106242905,MHCLG Fujitsu recharge QRT 1 2018-19,HP2 4XN,"311,314.26",
MHCLG,PINS,17/01/2019,IT SUPPORT,TR People,HAYS SPECIALIST RECRUITMENT LTD,,Large,,5106242906,End of Dec Extension HR BP-SL,NW1 2AF,"2,299.54",
MHCLG,PINS,18/01/2019,Advertising,ROW,TMP (UK) LIMITED,,Large,,5106242941,Statutory Advertising - ROW,W1T 7RQ,835.43,
MHCLG,PINS,18/01/2019,Agency Staff,"Finance, Commercial & Performance",REED SPECIALIST RECRUITMENT LTD,,Large,,5106242831,EO for Finance ext,SW20 0BA,659.98,
MHCLG,PINS,18/01/2019,Communication Telecom Costs,ICT Digital Services,BT PAYMENT SERVICE LIMITED,,Large,,5106242943,Charges excluding VAT,DH98 1BT,40.00,
MHCLG,PINS,18/01/2019,Communication Telecom Costs,ICT Digital Services,BT PAYMENT SERVICE LIMITED,,Large,,5106242943,Line rental & services for ADSL,DH98 1BT,305.28,
MHCLG,PINS,18/01/2019,IT SUPPORT,Performance Recovery,AKER SYSTEMS LTD,,Small,,5106242424,Technical Support,OX26 6AD,"35,307.60",
MHCLG,PINS,18/01/2019,IT SUPPORT,Research and Development,HAYS SPECIALIST RECRUITMENT LTD,,Large,,5106242683,Workforce planner,NW1 2AF,"2,262.84",
MHCLG,PINS,18/01/2019,IT SUPPORT,Research and Development,HAYS SPECIALIST RECRUITMENT LTD,,Large,,5106242801,Workforce planner,NW1 2AF,452.57,
MHCLG,PINS,18/01/2019,NSI Fees & Expenses,NSI Fees Planning,DESIGN 2,,Micro,,2100067664,,PO20 0HX,"1,260.00",
MHCLG,PINS,18/01/2019,NSI Fees & Expenses,NSI Expenses Planning,DESIGN 2,,Micro,,2100067664,,PO20 0HX,87.40,
MHCLG,PINS,18/01/2019,NSI Fees & Expenses,NSI Expenses Planning,FITZSIMON PLANNING & DEVELOPMENT,,Micro,,2100067662,,CH7 5NL,287.65,
MHCLG,PINS,18/01/2019,NSI Fees & Expenses,NSI Fees Planning,JACKMAN ENTERPRISES LTD,,Small,,2100067663,,EN5 2JA,"1,500.00",
MHCLG,PINS,18/01/2019,NSI Fees & Expenses,NSI Expenses Planning,JACKMAN ENTERPRISES LTD,,Small,,2100067663,,EN5 2JA,504.25,
MHCLG,PINS,18/01/2019,Specialist Technical Support,ICT Digital Services,REED SPECIALIST RECRUITMENT LTD,,Large,,5106242828,Contract extension,SW20 0BA,810.36,
MHCLG,PINS,18/01/2019,Specialist Technical Support,ICT Digital Services,REED SPECIALIST RECRUITMENT LTD,,Large,,5106242836,ITMP resource,SW20 0BA,727.20,
MHCLG,PINS,18/01/2019,Training,Differences - Central,WEST OF ENGLAND UNIVERSITY,,Data Not Provided,,5106242794,Uwe invoice SN373695/1,BS16 1QY,"3,150.00",
MHCLG,PINS,21/01/2019,IT SUPPORT,Research and Development,HAYS SPECIALIST RECRUITMENT LTD,,Large,,5106242961,Workforce planner,NW1 2AF,"1,810.27",
MHCLG,PINS,21/01/2019,Specialist Technical Support,"Finance, Commercial & Performance",ALLEN LANE LTD,,Medium,,5106242914,FPBP Resource ext,SW1Y 6RJ,"3,427.68",
MHCLG,PINS,21/01/2019,Specialist Technical Support,ICT Digital Services,ALLEN LANE LTD,,Medium,,5106242915,Office 365 technical specialist from,SW1Y 6RJ,"2,681.94",
MHCLG,PINS,21/01/2019,Specialist Technical Support,ICT Digital Services,METHODS PROFESSIONAL SERVICES,,Small,,5106242985,Contract extention Methods,EC1A 4EN,"11,637.00",
MHCLG,PINS,21/01/2019,Specialist Technical Support,ICT Digital Services,REED SPECIALIST RECRUITMENT LTD,,Large,,5106241750,ITMP resource,SW20 0BA,"1,422.60",
MHCLG,PINS,21/01/2019,Specialist Technical Support,ICT Digital Services,REED SPECIALIST RECRUITMENT LTD,,Large,,5106242023,ITMP resource,SW20 0BA,"1,422.60",
MHCLG,PINS,21/01/2019,Specialist Technical Support,ICT Digital Services,REED SPECIALIST RECRUITMENT LTD,,Large,,5106242197,ITMP resource,SW20 0BA,"1,422.60",
MHCLG,PINS,21/01/2019,Steady State Service Provision,Human Resources,HEALTH  MANAGEMENT LTD,,Medium,,5106242983,Health Management 2018/19,BN8 5NN,"1,078.80",
MHCLG,PINS,22/01/2019,IT SUPPORT,ICT Digital Services,HAYS SPECIALIST RECRUITMENT LTD,,Large,,5106242980,ITMP Delivery Manager,NW1 2AF,"4,660.50",
MHCLG,PINS,22/01/2019,IT SUPPORT,TR People,HAYS SPECIALIST RECRUITMENT LTD,,Large,,5106243027,End of Dec Extension HR BP-SL,NW1 2AF,"3,832.56",
MHCLG,PINS,22/01/2019,Publications,"Policy, Knowledge & Quality",THOMSON REUTERS (PROFESSIONAL) UK L,,Large,,5106243061,Encyclopedia of Planning Law & Practice,SP10 9AF,"-1,833.50",
MHCLG,PINS,23/01/2019,Agency Staff,Planning Casework Operations,REED SPECIALIST RECRUITMENT LTD,,Large,,5106243038,AO AGENCY STAFF JJF,SW20 0BA,616.06,
MHCLG,PINS,23/01/2019,Agency Staff,"Policy, Knowledge & Quality",REED SPECIALIST RECRUITMENT LTD,,Large,,5106243049,Agency Staff for Library,SW20 0BA,575.53,
MHCLG,PINS,23/01/2019,Agency Staff,Planning Casework Operations,REED SPECIALIST RECRUITMENT LTD,,Large,,5106243057,Agency AO PCO GD,SW20 0BA,513.26,
MHCLG,PINS,23/01/2019,Agency Staff,Enforcements,REED SPECIALIST RECRUITMENT LTD,,Large,,5106243067,Agency Staff RT,SW20 0BA,539.50,
MHCLG,PINS,23/01/2019,EXP � PURCHASE OF GOODS /SERVICES R & D,TR Transformation,RAINMAKER SOLUTIONS LTD,,Medium,,5106241962,T&M work-Design Stages,MK18 1HD,"56,325.00",
MHCLG,PINS,23/01/2019,EXP � PURCHASE OF GOODS /SERVICES R & D,TR Transformation,RAINMAKER SOLUTIONS LTD,,Medium,,5106242790,T&M work-Design Stages,MK18 1HD,"54,800.00",
MHCLG,PINS,23/01/2019,IT - Service Contracts,ICT Digital Services,MHCLG,,Public Bodies,,5106243003,MHCLG Fujitsu recharge for QRT 2 2018-19,HP2 4XN,"310,937.30",
MHCLG,PINS,23/01/2019,IT - Software Maintenance,ICT Digital Services,INFOR (UNITED KINGDOM) LIMITED,,Large,,5106243060,Maintenance & support for SunSystems,B90 8BG,"8,625.30",
MHCLG,PINS,23/01/2019,IT SUPPORT,Research and Development,HAYS SPECIALIST RECRUITMENT LTD,,Large,,5106243028,Workforce planner,NW1 2AF,"2,262.84",
MHCLG,PINS,23/01/2019,IT SUPPORT,ICT Digital Services,THIRTY FOUR FEET LTD,,Micro,,5106243000,IT tester services - contract extension,NP15 1QB,"2,100.00",
MHCLG,PINS,23/01/2019,Legal Fees,Wales Director,GOVERNMENT LEGAL DEPT,,Public Bodies,,5106243055,Legal Fees,WC2B 4TS,"2,766.60",
MHCLG,PINS,23/01/2019,Publications,"Policy, Knowledge & Quality",THOMSON REUTERS (PROFESSIONAL) UK L,,Large,,5106243059,Bates Water and Drainage,SP10 9AF,688.75,
MHCLG,PINS,23/01/2019,Publications,"Policy, Knowledge & Quality",THOMSON REUTERS (PROFESSIONAL) UK L,,Large,,5106243059,Ency Compulsory Purchase,SP10 9AF,"1,201.75",
MHCLG,PINS,23/01/2019,Publications,"Policy, Knowledge & Quality",THOMSON REUTERS (PROFESSIONAL) UK L,,Large,,5106243059,Ency Environmental Law,SP10 9AF,"1,748.00",
MHCLG,PINS,23/01/2019,Publications,"Policy, Knowledge & Quality",THOMSON REUTERS (PROFESSIONAL) UK L,,Large,,5106243059,Ency Planning Law & Practice,SP10 9AF,"1,833.50",
MHCLG,PINS,23/01/2019,Publications,"Policy, Knowledge & Quality",THOMSON REUTERS (PROFESSIONAL) UK L,,Large,,5106243059,Encyclopedia of Planning Law & Practice,SP10 9AF,"1,833.50",
MHCLG,PINS,23/01/2019,Specialist Technical Support,ICT Digital Services,REED SPECIALIST RECRUITMENT LTD,,Large,,5106243036,Contract extension up to 29/03/19,SW20 0BA,"1,451.89",
MHCLG,PINS,24/01/2019,Agency Staff,"Finance, Commercial & Performance",REED SPECIALIST RECRUITMENT LTD,,Large,,5106243034,EO for Finance ext,SW20 0BA,838.85,
MHCLG,PINS,24/01/2019,Agency Staff,Inspector Development & Support Team,REED SPECIALIST RECRUITMENT LTD,,Large,,5106243037,Temp staff for IDST-SC,SW20 0BA,603.37,
MHCLG,PINS,24/01/2019,Agency Staff,Environment & Transport,REED SPECIALIST RECRUITMENT LTD,,Large,,5106243096,AO Specialist Case Officer HL,SW20 0BA,569.88,
MHCLG,PINS,24/01/2019,Agency Staff,Environment & Transport,REED SPECIALIST RECRUITMENT LTD,,Large,,5106243098,AO Specialist Case Officer PS,SW20 0BA,559.76,
MHCLG,PINS,24/01/2019,Agency Staff,Inspector Development & Support Team,REED SPECIALIST RECRUITMENT LTD,,Large,,5106243100,Agency EO IDST,SW20 0BA,511.40,
MHCLG,PINS,24/01/2019,EXP � PURCHASE OF GOODS /SERVICES R & D,Research and Development,HAYS SPECIALIST RECRUITMENT LTD,,Large,,5106243040,ODT Copywriter Resource,NW1 2AF,794.00,
MHCLG,PINS,24/01/2019,IT SUPPORT,Differences - Central,HAYS SPECIALIST RECRUITMENT LTD,,Large,,5106243039,Research & Development for Stats ODT,NW1 2AF,"2,682.00",
MHCLG,PINS,24/01/2019,Office machinery consumables,Business Support,X M A LIMITED,,Data Not Provided,,5106243088,Office Machine Consumables 18-19,NG11 7EP,"1,638.79",
MHCLG,PINS,24/01/2019,Specialist Technical Support,ICT Digital Services,REED SPECIALIST RECRUITMENT LTD,,Large,,5106242245,ITMP resource,SW20 0BA,"1,422.60",
MHCLG,PINS,24/01/2019,Specialist Technical Support,ICT Digital Services,REED SPECIALIST RECRUITMENT LTD,,Large,,5106242769,ITMP resource,SW20 0BA,"1,422.60",
MHCLG,PINS,24/01/2019,Specialist Technical Support,ICT Digital Services,REED SPECIALIST RECRUITMENT LTD,,Large,,5106243035,ITMP resource,SW20 0BA,"1,212.00",
MHCLG,PINS,25/01/2019,Communication Telecom Costs,ICT Digital Services,BT PAYMENT SERVICE LIMITED,,Large,,5106243132,Charges excluding VAT,DH98 1BT,40.00,
MHCLG,PINS,25/01/2019,Communication Telecom Costs,ICT Digital Services,BT PAYMENT SERVICE LIMITED,,Large,,5106243132,Line rental & services for ADSL,DH98 1BT,301.56,
MHCLG,PINS,25/01/2019,NSI Fees & Expenses,NSI Fees Planning,4 PLANNING DELIVERY LTD,,Micro,,2100067941,,S8 9BG,924.00,
MHCLG,PINS,25/01/2019,NSI Fees & Expenses,NSI Expenses Planning,4 PLANNING DELIVERY LTD,,Micro,,2100067941,,S8 9BG,136.95,
MHCLG,PINS,25/01/2019,NSI Fees & Expenses,NSI Fees Planning,KIM BENNETT PLANNING SERVICES,,Micro,,2100067940,,CT2 7ET,"1,050.00",
MHCLG,PINS,25/01/2019,NSI Fees & Expenses,NSI Expenses Planning,KIM BENNETT PLANNING SERVICES,,Micro,,2100067940,,CT2 7ET,62.25,
MHCLG,PINS,25/01/2019,NSI Fees & Expenses,NSI Fees Planning,S P PLANNING,,Small,,2100067942,,EC1M 5QA,"2,100.00",
MHCLG,PINS,25/01/2019,NSI Fees & Expenses,NSI Expenses Planning,S P PLANNING,,Small,,2100067942,,EC1M 5QA,53.46,
MHCLG,PINS,25/01/2019,Specialist Technical Support,"Finance, Commercial & Performance",ALLEN LANE LTD,,Medium,,5106243077,FPBP Resource ext,SW1Y 6RJ,"3,427.68",
MHCLG,PINS,28/01/2019,Advertising,ROW,TMP (UK) LIMITED,,Large,,5106243180,Statutory Advertising - ROW,W1T 7RQ,358.60,
MHCLG,PINS,28/01/2019,EXP � PURCHASE OF GOODS /SERVICES R & D,Research and Development,HAYS SPECIALIST RECRUITMENT LTD,,Large,,5106243122,ODT Copywriter Resource,NW1 2AF,"1,191.00",
MHCLG,PINS,28/01/2019,Training,Wales Director,ROYAL TOWN PLANNING INSTITUTE,,Medium,,5106243170,Training,EC3R 8DL,244.00,
MHCLG,PINS,29/01/2019,IT SUPPORT,ICT Digital Services,HAYS SPECIALIST RECRUITMENT LTD,,Large,,5106243258,ITMP Delivery Manager,NW1 2AF,-776.76,
MHCLG,PINS,29/01/2019,IT SUPPORT,ICT Digital Services,HAYS SPECIALIST RECRUITMENT LTD,,Large,,5106243259,ITMP Delivery Manager,NW1 2AF,-932.11,
MHCLG,PINS,29/01/2019,IT SUPPORT,ICT Digital Services,HAYS SPECIALIST RECRUITMENT LTD,,Large,,5106243261,ITMP Delivery Manager,NW1 2AF,776.76,
MHCLG,PINS,29/01/2019,Legal Fees,"Policy, Knowledge & Quality",GOVERNMENT LEGAL DEPARTMENT,,Public Bodies,,5106243207,Disbursements,WC2B 4TS,"16,316.60",
MHCLG,PINS,29/01/2019,Legal Fees,"Policy, Knowledge & Quality",GOVERNMENT LEGAL DEPARTMENT,,Public Bodies,,5106243207,Fees & Charges,WC2B 4TS,"46,707.95",
MHCLG,PINS,29/01/2019,Specialist Technical Support,ICT Digital Services,HAYS SPECIALIST RECRUITMENT LTD,,Large,,5106243260,ITMP PDM,NW1 2AF,932.11,
MHCLG,PINS,30/01/2019,Agency Staff,Planning Casework Operations,REED SPECIALIST RECRUITMENT LTD,,Large,,5106243214,AO AGENCY STAFF JJF,SW20 0BA,599.84,
MHCLG,PINS,30/01/2019,Agency Staff,Environment & Transport,REED SPECIALIST RECRUITMENT LTD,,Large,,5106243250,AO Specialist Case Officer PS,SW20 0BA,452.41,
MHCLG,PINS,30/01/2019,Agency Staff,Environment & Transport,REED SPECIALIST RECRUITMENT LTD,,Large,,5106243251,AO Specialist Case Officer HL,SW20 0BA,569.88,
MHCLG,PINS,30/01/2019,Agency Staff,"Policy, Knowledge & Quality",REED SPECIALIST RECRUITMENT LTD,,Large,,5106243253,Agency Staff for Library,SW20 0BA,599.84,
MHCLG,PINS,30/01/2019,Agency Staff,Enforcements,REED SPECIALIST RECRUITMENT LTD,,Large,,5106243265,Agency Staff RT,SW20 0BA,265.18,
MHCLG,PINS,30/01/2019,IT SUPPORT,ICT Digital Services,HAYS SPECIALIST RECRUITMENT LTD,,Large,,5106243255,ITMP Delivery Manager,NW1 2AF,"4,660.50",
MHCLG,PINS,30/01/2019,IT SUPPORT,ICT Digital Services,THIRTY FOUR FEET LTD,,Micro,,5106243136,IT tester services - contract extension,NP15 1QB,"1,680.00",
MHCLG,PINS,30/01/2019,NSI Fees & Expenses,NSI Fees Planning,COUPER PLANNING SERVICES LTD,,Micro,,2100068118,,WR5 2AG,"2,100.00",
MHCLG,PINS,30/01/2019,NSI Fees & Expenses,NSI Expenses Planning,COUPER PLANNING SERVICES LTD,,Micro,,2100068118,,WR5 2AG,112.50,
MHCLG,PINS,30/01/2019,NSI Fees & Expenses,NSI Fees Planning,D C PLANNING LTD,,Data Not Provided,,2100068063,,BH14 8AL,"3,570.00",
MHCLG,PINS,30/01/2019,NSI Fees & Expenses,NSI Expenses Planning,D C PLANNING LTD,,Data Not Provided,,2100068063,,BH14 8AL,286.08,
MHCLG,PINS,30/01/2019,NSI Fees & Expenses,NSI Fees Planning,EGGLETON PLANNING AND DESIGN,,Micro,,2100068066,,HG4 2QF,"1,680.00",
MHCLG,PINS,30/01/2019,NSI Fees & Expenses,NSI Expenses Planning,EGGLETON PLANNING AND DESIGN,,Micro,,2100068066,,HG4 2QF,94.68,
MHCLG,PINS,30/01/2019,NSI Fees & Expenses,NSI Fees Planning,GARY DEANE ASSOCIATES LIMITED,,Micro,,2100068067,,M33 6RG,"2,460.00",
MHCLG,PINS,30/01/2019,NSI Fees & Expenses,NSI Expenses Planning,GARY DEANE ASSOCIATES LIMITED,,Micro,,2100068067,,M33 6RG,249.48,
MHCLG,PINS,30/01/2019,NSI Fees & Expenses,NSI Fees Planning,H J L PLANNING,,Micro,,2100068062,,CM3 1HZ,"1,400.00",
MHCLG,PINS,30/01/2019,NSI Fees & Expenses,NSI Expenses Planning,H J L PLANNING,,Micro,,2100068062,,CM3 1HZ,108.10,
MHCLG,PINS,30/01/2019,NSI Fees & Expenses,NSI Fees Planning,KIM BENNETT PLANNING SERVICES,,Micro,,2100068121,,CT2 7ET,"1,050.00",
MHCLG,PINS,30/01/2019,NSI Fees & Expenses,NSI Expenses Planning,KIM BENNETT PLANNING SERVICES,,Micro,,2100068121,,CT2 7ET,48.60,
MHCLG,PINS,30/01/2019,NSI Fees & Expenses,NSI Fees Planning,MARTIN ANDREWS PLANNING CONSULTANCY,,Micro,,2100068065,,BH15 1HH,"2,520.00",
MHCLG,PINS,30/01/2019,NSI Fees & Expenses,NSI Expenses Planning,MARTIN ANDREWS PLANNING CONSULTANCY,,Micro,,2100068065,,BH15 1HH,104.94,
MHCLG,PINS,30/01/2019,NSI Fees & Expenses,NSI Fees Planning,PLANNING SERVICES (UK) LTD,,Micro,,2100068064,,BA1 7UD,"2,040.00",
MHCLG,PINS,30/01/2019,NSI Fees & Expenses,NSI Expenses Planning,PLANNING SERVICES (UK) LTD,,Micro,,2100068064,,BA1 7UD,92.52,
MHCLG,PINS,30/01/2019,NSI Fees & Expenses,NSI Fees Planning,SANDRA PRAIL LTD,,Micro,,2100068119,,BN16 1RX,"1,620.00",
MHCLG,PINS,30/01/2019,NSI Fees & Expenses,NSI Expenses Planning,SANDRA PRAIL LTD,,Micro,,2100068119,,BN16 1RX,106.02,
MHCLG,PINS,30/01/2019,NSI Fees & Expenses,NSI Fees Planning,STORRIE PLANNING,,Small,,2100068068,,HD1 6RX,"1,525.00",
MHCLG,PINS,30/01/2019,NSI Fees & Expenses,NSI Expenses Planning,STORRIE PLANNING,,Small,,2100068068,,HD1 6RX,341.32,
MHCLG,PINS,30/01/2019,Office Supplies,Business Support,BANNER BUSINESS SUPPLIES LTD,,Large,,5106243262,Office Stationery 18-19,S9 1XU,175.13,
MHCLG,PINS,30/01/2019,Office Supplies,Business Support,BANNER BUSINESS SUPPLIES LTD,,Large,,5106243262,Paper 18-19,S9 1XU,282.98,
MHCLG,PINS,30/01/2019,Office Supplies,Business Support,BANNER BUSINESS SUPPLIES LTD,,Large,,5106243267,Office Stationery 18-19,S9 1XU,308.87,
MHCLG,PINS,30/01/2019,Office Supplies,Business Support,BANNER BUSINESS SUPPLIES LTD,,Large,,5106243267,Paper 18-19,S9 1XU,341.36,
MHCLG,PINS,30/01/2019,Specialist Technical Support,ICT Digital Services,ALLEN LANE LTD,,Medium,,5106243078,Office 365 technical specialist from,SW1Y 6RJ,"2,681.94",
MHCLG,PINS,30/01/2019,Specialist Technical Support,ICT Digital Services,REED SPECIALIST RECRUITMENT LTD,,Large,,5106243229,Contract extension,SW20 0BA,"1,323.59",
MHCLG,PINS,30/01/2019,Specialist Technical Support,ICT Digital Services,REED SPECIALIST RECRUITMENT LTD,,Large,,5106243231,ITMP resource,SW20 0BA,"1,212.00",
MHCLG,PINS,31/01/2019,Advertising,ROW,TMP (UK) LIMITED,,Large,,5106243292,Statutory Advertising - ROW,W1T 7RQ,392.26,
MHCLG,PINS,31/01/2019,Advertising,ROW,TMP (UK) LIMITED,,Large,,5106243293,Statutory Advertising - ROW,W1T 7RQ,508.72,
MHCLG,PINS,31/01/2019,Agency Staff,Planning Casework Operations,REED SPECIALIST RECRUITMENT LTD,,Large,,5106243215,Agency AO PCO GD,SW20 0BA,479.30,
MHCLG,PINS,31/01/2019,Publications,"Policy, Knowledge & Quality",HAYMARKET MEDIA GROUP LIMITED,,Data Not Provided,,5106242842,Planning Magazine,TW1 3SP,"12,600.00",
